bitfinex/quotes_SOLUSD_20241005
["timestamp","ask_amount","ask_price","bid_price","bid_amount"]
[1728130833603,20.0,143.85,143.82,50.0]
[1728130833989,6.20395591,143.84,143.82,50.0]
[1728130834196,20.0,143.85,143.82,50.0]
[1728130834494,6.20314938,143.84,143.82,50.0]
[1728130834716,20.0,143.85,143.82,50.0]
[1728130834939,6.20307539,143.84,143.82,50.0]
[1728130835209,20.0,143.85,143.82,50.0]
[1728130837490,20.0,143.85,143.82,56.9531]
[1728130837922,6.9513,143.86,143.82,56.9531]
[1728130839799,20.0,143.86,143.82,56.9531]
[1728130839994,20.0,143.86,143.82,69.89351899]
[1728130842022,20.0,143.86,143.83,6.9526]
[1728130842212,20.0,143.87,143.83,56.9526]
[1728130842514,6.9498,143.89,143.85,69.89201899]
[1728130843820,20.0,143.88,143.85,69.89201899]
[1728130851028,26.9507,143.88,143.84,17.3799]
[1728130851327,0.12549,143.89,143.83,50.0]
[1728130851328,6.9511,143.87,143.83,50.0]
[1728130852620,6.9517,143.85,143.81,89.8434]
[1728130852825,6.9517,143.85,143.81,67.3833]
[1728130853032,6.9512,143.86,143.82,50.0]
[1728130854021,6.9512,143.86,143.82,6.953]
[1728130854319,6.9512,143.86,143.82,56.953]
[1728130855506,20.0,143.87,143.82,56.953]
[1728130855507,26.9508,143.87,143.82,56.953]
[1728130855707,26.9508,143.87,143.82,69.89341899]
[1728130856119,26.9508,143.87,143.83,6.9526]
[1728130856321,20.0,143.87,143.83,69.89301899]
[1728130858014,7.07569,143.88,143.83,69.89301899]
[1728130858324,6.9502,143.88,143.84,6.9521]
[1728130858517,6.9502,143.88,143.84,56.9521]
[1728130862713,6.9502,143.88,143.84,6.9521]
[1728130863730,6.9502,143.88,143.84,56.9521]
[1728130865636,6.9512,143.86,143.82,56.9529]
[1728130866630,23.40962069,143.85,143.78,50.0]
[1728130866809,44.027864,143.84,143.78,50.0]
[1728130867829,6.9535,143.82,143.78,50.0]
[1728130868018,6.9535,143.82,143.77,6.9554]
[1728130868218,6.9535,143.82,143.78,50.0]
[1728130869824,50.980064,143.84,143.79,6.9545]
[1728130870010,6.21614945,143.83,143.79,6.9545]
[1728130870209,50.980064,143.84,143.79,56.9545]
[1728130870408,6.21759534,143.83,143.79,56.9545]
[1728130870714,50.980064,143.84,143.79,56.9545]
[1728130870910,6.2175931,143.83,143.79,56.9545]
[1728130871110,50.980064,143.84,143.79,56.9545]
[1728130871336,6.21885754,143.83,143.79,56.9545]
[1728130871533,50.980064,143.84,143.79,56.9545]
[1728130871754,6.21887391,143.83,143.79,56.9545]
[1728130871911,50.980064,143.84,143.79,56.9545]
[1728130872106,6.21892604,143.83,143.79,56.9545]
[1728130872332,50.980064,143.84,143.79,56.9545]
[1728130872539,6.22033221,143.83,143.79,56.9545]
[1728130872723,50.980064,143.84,143.79,56.9545]
[1728130872925,6.21967945,143.83,143.8,8.34469676]
[1728130873235,50.854574,143.84,143.8,8.34469676]
[1728130873534,6.22086786,143.83,143.8,8.34469676]
[1728130873834,50.854574,143.84,143.8,8.34469676]
[1728130874036,6.22086905,143.83,143.79,56.9545]
[1728130874338,50.854574,143.84,143.79,56.9545]
[1728130874523,6.22199636,143.83,143.79,56.9545]
[1728130874723,50.854574,143.84,143.79,56.9545]
[1728130874929,6.22199626,143.83,143.79,56.9545]
[1728130875115,6.22317719,143.82,143.79,56.9545]
[1728130875315,50.854574,143.84,143.79,56.9545]
[1728130875614,6.22336698,143.83,143.79,56.9545]
[1728130875814,6.22336698,143.82,143.79,56.9545]
[1728130876034,50.854574,143.84,143.79,56.9545]
[1728130876334,6.22441678,143.83,143.79,56.9545]
[1728130876528,6.22441678,143.82,143.79,56.9545]
[1728130876740,50.854574,143.84,143.79,56.9545]
[1728130876947,6.22451621,143.83,143.79,56.9545]
[1728130877234,6.22451621,143.82,143.79,6.9545]
[1728130877435,6.9528,143.83,143.79,6.9545]
[1728130877614,6.22592562,143.82,143.79,6.9545]
[1728130877814,8.12722069,143.83,143.78,74.3418]
[1728130878239,13.17902325,143.82,143.78,74.3418]
[1728130878416,6.9531,143.82,143.78,74.3418]
[1728130878746,6.9531,143.82,143.78,24.3418]
[1728130879039,6.9531,143.82,143.78,17.3869]
[1728130879237,6.2273956,143.81,143.78,17.3869]
[1728130879546,6.9531,143.82,143.78,17.3869]
[1728130879717,6.22733591,143.81,143.78,17.3869]
[1728130879915,6.9531,143.82,143.78,17.3869]
[1728130880133,6.22687281,143.81,143.78,17.3869]
[1728130880434,6.9531,143.82,143.78,17.3869]
[1728130880628,6.22720604,143.81,143.78,17.3869]
[1728130880827,6.9531,143.82,143.78,17.3869]
[1728130881026,6.22646589,143.81,143.78,17.3869]
[1728130881232,6.9531,143.82,143.78,17.3869]
[1728130881425,6.22641973,143.81,143.78,17.3869]
[1728130881626,6.9531,143.82,143.78,17.3869]
[1728130881931,6.22632079,143.81,143.78,17.3869]
[1728130882139,6.9531,143.82,143.78,17.3869]
[1728130882325,6.22467733,143.81,143.78,17.3869]
[1728130882643,6.9531,143.82,143.78,17.3869]
[1728130882945,6.22488268,143.81,143.78,17.3869]
[1728130883139,6.9531,143.82,143.78,17.3869]
[1728130883440,6.22421614,143.81,143.78,17.3869]
[1728130883643,6.9531,143.82,143.78,17.3869]
[1728130883846,6.22389611,143.81,143.78,17.3869]
[1728130884019,6.9531,143.82,143.78,17.3869]
[1728130884219,6.22300015,143.81,143.78,17.3869]
[1728130884446,6.9531,143.82,143.78,17.3869]
[1728130884620,6.22234208,143.81,143.78,17.3869]
[1728130884945,6.9531,143.82,143.78,17.3869]
[1728130885139,6.22224807,143.81,143.78,17.3869]
[1728130885444,6.9531,143.82,143.78,17.3869]
[1728130885621,6.22175178,143.81,143.78,17.3869]
[1728130885822,6.9531,143.82,143.78,17.3869]
[1728130886042,6.22175178,143.81,143.78,17.3869]
[1728130886240,6.9531,143.82,143.78,17.3869]
[1728130886445,6.22226568,143.81,143.78,17.3869]
[1728130886628,6.9531,143.82,143.78,17.3869]
[1728130886827,20.0,143.8,143.76,50.0]
[1728130887329,0.12549,143.82,143.75,67.3909]
[1728130887539,6.9544,143.8,143.75,74.347]
[1728130888323,20.0,143.8,143.77,50.0]
[1728130888519,24.027864,143.82,143.78,17.387]
[1728130888745,24.027864,143.82,143.78,24.3419]
[1728130888746,26.22160427,143.81,143.78,24.3419]
[1728130888925,20.0,143.81,143.78,24.3419]
[1728130889845,20.0,143.81,143.78,17.387]
[1728130896137,6.2226515,143.8,143.78,17.387]
[1728130896452,20.0,143.81,143.78,17.387]
[1728130897126,6.22322461,143.8,143.78,17.387]
[1728130897327,20.0,143.81,143.78,17.387]
[1728130897624,6.22319036,143.8,143.78,17.387]
[1728130897855,20.0,143.81,143.78,17.387]
[1728130898023,6.22319036,143.8,143.78,17.387]
[1728130898227,20.0,143.81,143.78,17.387]
[1728130898633,6.22291302,143.8,143.78,17.387]
[1728130898939,20.0,143.81,143.78,17.387]
[1728130899234,6.22311686,143.8,143.78,17.387]
[1728130899438,20.0,143.81,143.78,17.387]
[1728130899746,6.22320026,143.8,143.78,17.387]
[1728130899929,20.0,143.81,143.78,17.387]
[1728130900123,6.22307568,143.8,143.78,17.387]
[1728130900330,20.0,143.81,143.78,17.387]
[1728130900629,6.2230726,143.8,143.78,17.387]
[1728130900960,20.0,143.81,143.78,17.387]
[1728130901249,6.22495169,143.8,143.78,17.387]
[1728130901455,20.0,143.81,143.78,17.387]
[1728130901631,6.22546608,143.8,143.78,17.387]
[1728130901833,20.0,143.81,143.78,17.387]
[1728130902033,6.22588796,143.8,143.78,17.387]
[1728130902240,1.17442069,143.8,143.76,50.0]
[1728130902439,6.9564,143.76,143.73,50.0]
[1728130902642,6.9556,143.77,143.73,56.9572]
[1728130902862,21.29991069,143.79,143.73,56.9572]
[1728130903028,26.9556,143.77,143.73,56.9572]
[1728130903228,20.0,143.77,143.73,56.9572]
[1728130903530,20.0,143.78,143.74,50.0]
[1728130905131,20.0,143.78,143.75,6.9564]
[1728130907457,28.12862069,143.8,143.75,6.9564]
[1728130907643,20.0,143.78,143.75,50.0]
[1728130907957,20.0,143.79,143.76,6.9559]
[1728130908435,20.0,143.8,143.77,6.9554]
[1728130909056,6.22719387,143.79,143.77,6.9554]
[1728130909360,20.0,143.8,143.77,6.9554]
[1728130909534,6.22848388,143.79,143.77,6.9554]
[1728130909737,20.0,143.8,143.77,6.9554]
[1728130909942,6.22842802,143.79,143.77,6.9554]
[1728130910150,20.0,143.8,143.77,6.9554]
[1728130910349,6.23007657,143.79,143.77,6.9554]
[1728130910544,20.0,143.8,143.77,6.9554]
[1728130910747,6.23007604,143.79,143.77,6.9554]
[1728130910948,20.0,143.8,143.77,6.9554]
[1728130911149,6.2296227,143.79,143.77,6.9554]
[1728130911339,20.0,143.8,143.77,6.9554]
[1728130911665,6.23134886,143.79,143.77,6.9554]
[1728130911850,20.0,143.8,143.77,6.9554]
[1728130912160,7.40566322,143.79,143.74,50.0]
[1728130912364,13.18634253,143.78,143.74,50.0]
[1728130912558,6.9551,143.78,143.74,56.9569]
[1728130912939,6.23203279,143.77,143.75,50.0]
[1728130913156,6.9546,143.79,143.76,6.9557]
[1728130913157,20.0,143.79,143.76,6.9557]
[1728130913358,6.23213847,143.78,143.76,6.9557]
[1728130913663,20.0,143.79,143.76,6.9557]
[1728130913860,6.23215393,143.78,143.76,6.9557]
[1728130914158,24.027864,143.83,143.76,6.9557]
[1728130914343,20.0,143.8,143.76,6.9557]
[1728130914543,6.2325101,143.79,143.76,6.9557]
[1728130914762,20.0,143.8,143.78,56.9548]
[1728130915260,6.23268136,143.79,143.78,6.9548]
[1728130916263,6.23268136,143.79,143.78,56.9548]
[1728130917663,6.23268136,143.79,143.78,50.0]
[1728130918162,6.23332264,143.79,143.78,50.0]
[1728130923770,20.0,143.81,143.78,50.0]
[1728130923968,6.23508804,143.79,143.78,50.0]
[1728130924565,6.23508804,143.79,143.77,74.3436]
[1728130924862,20.0,143.81,143.77,74.3436]
[1728130925067,6.23504409,143.8,143.77,74.3436]
[1728130925373,6.23504409,143.79,143.77,67.3882]
[1728130925553,26.9537,143.81,143.77,67.3882]
[1728130925745,6.2354621,143.8,143.77,17.3882]
[1728130925949,6.2354621,143.79,143.77,17.3882]
[1728130926147,26.9537,143.81,143.77,17.3882]
[1728130926370,6.2357562,143.8,143.77,17.3882]
[1728130926674,6.2357562,143.79,143.77,17.3882]
[1728130926858,26.9537,143.81,143.77,17.3882]
[1728130927270,6.23575989,143.8,143.77,17.3882]
[1728130927564,26.9537,143.81,143.77,17.3882]
[1728130927565,6.23575989,143.79,143.77,17.3882]
[1728130927871,26.9537,143.81,143.77,67.3882]
[1728130928075,6.23634637,143.8,143.77,67.3882]
[1728130928374,6.23634637,143.79,143.77,67.3882]
[1728130928568,24.027864,143.83,143.77,67.3882]
[1728130928749,20.0,143.81,143.77,67.3882]
[1728130930065,20.0,143.81,143.77,74.3437]
[1728130931082,20.0,143.8,143.77,74.3437]
[1728130934267,20.0,143.8,143.77,24.3437]
[1728130934567,20.0,143.8,143.77,74.3437]
[1728130945476,20.0,143.81,143.79,50.0]
[1728130946171,20.0,143.82,143.79,50.0]
[1728130952792,6.9526,143.83,143.79,56.9543]
[1728130953789,6.9526,143.83,143.8,50.0]
[1728130954987,23.902374,143.84,143.78,50.0]
[1728130955176,6.9535,143.82,143.78,50.0]
[1728130958780,6.9535,143.82,143.78,56.955]
[1728130963394,6.9535,143.82,143.79,50.0]
[1728130966684,26.9527,143.83,143.79,50.0]
[1728130968879,1.17442069,143.82,143.77,74.3437]
[1728130969101,20.12549,143.82,143.77,74.3437]
[1728130969293,26.9531,143.82,143.79,50.0]
[1728130969894,26.9531,143.82,143.78,50.0]
[1728130971023,26.9531,143.82,143.78,56.955]
[1728130971588,20.0,143.84,143.8,50.0]
[1728130971790,20.0,143.82,143.8,50.0]
[1728130974994,20.0,143.82,143.79,56.9545]
[1728130976191,16.6152,143.85,143.8,50.0]
[1728130976192,26.9522,143.84,143.8,50.0]
[1728130976402,6.9502,143.88,143.83,6.9526]
[1728130976595,6.9498,143.89,143.85,50.0]
[1728130976902,13.1076,143.91,143.86,8.34090553]
[1728130977382,13.1076,143.91,143.86,58.34090553]
[1728130977591,6.9488,143.91,143.86,58.34090553]
[1728130978197,20.0,143.9,143.86,58.34090553]
[1728130979108,20.0,143.91,143.87,6.9506]
[1728130979296,20.0,143.91,143.88,1.38986679]
[1728130980007,20.0,143.91,143.87,56.9506]
[1728130980709,0.8570311,143.92,143.88,56.9501]
[1728130982304,0.8570311,143.92,143.89,1.3897351]
[1728130983610,7.8053311,143.92,143.89,1.3897351]
[1728130983810,20.0,143.91,143.89,1.3897351]
[1728130985311,20.0,143.91,143.89,31.3897351]
[1728130985907,0.8570311,143.92,143.9,50.0]
[1728130986619,0.8570311,143.92,143.9,80.0]
[1728130986789,0.8570311,143.92,143.9,30.0]
[1728130986989,7.8054311,143.92,143.9,30.0]
[1728130991223,20.8570311,143.92,143.9,30.0]
[1728130991722,20.8570311,143.92,143.89,50.0]
[1728130991903,20.8570311,143.92,143.9,30.0]
[1728130992108,0.8570311,143.92,143.9,30.0]
[1728130993621,0.8570311,143.92,143.9,80.0]
[1728130997909,20.8570311,143.92,143.9,80.0]
[1728130998115,0.8570311,143.92,143.9,30.0]
[1728130998315,50.851074,143.91,143.9,30.0]
[1728130998504,50.976564,143.91,143.9,30.0]
[1728131000425,20.12549,143.9,143.84,56.952]
[1728131000603,20.0,143.88,143.85,30.0]
[1728131000803,6.9498,143.89,143.85,30.0]
[1728131001015,6.9498,143.89,143.86,1.39002867]
[1728131001229,20.0,143.89,143.86,1.39002867]
[1728131001524,20.0,143.89,143.87,30.0]
[1728131004006,20.0,143.89,143.85,6.9516]
[1728131004227,20.0,143.89,143.86,30.0]
[1728131009529,20.0,143.89,143.85,56.9516]
[1728131010512,20.0,143.89,143.85,6.9516]
[1728131010938,20.0,143.89,143.86,30.0]
[1728131012921,6.9499,143.89,143.86,30.0]
[1728131013316,20.0,143.9,143.86,30.0]
[1728131013521,26.9493,143.9,143.86,30.0]
[1728131018322,26.9493,143.9,143.85,56.9516]
[1728131018531,8.12422069,143.89,143.85,56.9516]
[1728131019348,8.12422069,143.89,143.85,6.9516]
[1728131020933,6.9498,143.89,143.85,6.9516]
[1728131021339,6.9498,143.89,143.87,30.0]
[1728131030646,6.9498,143.89,143.85,56.9516]
[1728131030855,6.9493,143.9,143.85,56.9516]
[1728131032135,6.9493,143.9,143.86,50.0]
[1728131033740,6.9493,143.9,143.87,30.0]
[1728131038235,6.9493,143.9,143.86,6.9511]
[1728131041355,6.9493,143.9,143.87,30.0]
[1728131044851,6.9493,143.9,143.86,6.9511]
[1728131047847,6.9493,143.9,143.87,30.0]
[1728131050656,8.12372069,143.9,143.87,30.0]
[1728131051949,30.852474,143.89,143.87,30.0]
[1728131052155,1.17442069,143.88,143.87,30.0]
[1728131052445,8.12462069,143.88,143.87,30.0]
[1728131052672,32.15248469,143.88,143.87,30.0]
[1728131053761,6.9512,143.86,143.85,30.0]
[1728131054067,6.9512,143.86,143.78,12.94041899]
[1728131054068,24.027864,143.85,143.78,50.0]
[1728131054259,1.17442069,143.84,143.79,30.0]
[1728131054580,8.12662069,143.84,143.79,36.9545]
[1728131054776,6.9528,143.83,143.79,36.9545]
[1728131054944,6.9522,143.84,143.79,36.9545]
[1728131055471,30.979564,143.85,143.8,56.9539]
[1728131055647,30.979564,143.85,143.81,30.0]
[1728131056266,23.902374,143.85,143.81,36.9535]
[1728131059259,23.902374,143.85,143.81,6.9535]
[1728131062256,23.902374,143.85,143.82,30.0]
[1728131070990,23.902374,143.85,143.81,6.9535]
[1728131071160,25.07679469,143.85,143.81,6.9535]
[1728131072696,23.902374,143.85,143.81,6.9535]
[1728131074184,23.902374,143.85,143.82,30.0]
[1728131078270,23.902374,143.85,143.81,6.9535]
[1728131081202,23.902374,143.85,143.82,30.0]
[1728131081703,23.902374,143.85,143.81,6.9535]
[1728131084194,8.12652069,143.84,143.8,6.9539]
[1728131084498,23.902374,143.85,143.8,6.9539]
[1728131084499,30.854074,143.85,143.8,6.9539]
[1728131084694,30.854074,143.85,143.81,30.0]
[1728131085790,1.17442069,143.84,143.81,30.0]
[1728131086887,0.12549,143.84,143.81,30.0]
[1728131090504,0.12549,143.85,143.81,30.0]
[1728131090809,0.12549,143.85,143.81,54.3369]
[1728131093290,0.12549,143.85,143.81,47.3835]
[1728131093584,0.12549,143.85,143.82,6.9529]
[1728131093806,0.12549,143.85,143.82,36.9529]
[1728131097713,0.12549,143.85,143.81,17.3835]
[1728131097919,23.902374,143.85,143.81,24.337]
[1728131098107,30.854174,143.85,143.81,24.337]
[1728131098299,8.12662069,143.84,143.79,50.0]
[1728131098507,8.12662069,143.84,143.79,56.9541]
[1728131098926,8.12662069,143.84,143.8,6.954]
[1728131101300,8.12662069,143.84,143.81,30.0]
[1728131103398,23.776884,143.83,143.81,30.0]
[1728131103600,1.17442069,143.82,143.81,30.0]
[1728131103822,32.15538469,143.82,143.81,30.0]
[1728131104430,30.980964,143.82,143.76,50.0]
[1728131104636,23.902374,143.81,143.77,6.9555]
[1728131105110,23.902374,143.81,143.78,6.955]
[1728131105794,6.31196442,143.8,143.78,6.955]
[1728131105994,6.31196442,143.79,143.77,6.9554]
[1728131106306,23.902374,143.81,143.77,6.9554]
[1728131106618,6.310499,143.8,143.77,6.9554]
[1728131106924,6.310499,143.79,143.77,6.9554]
[1728131107100,6.310499,143.78,143.77,6.9554]
[1728131107300,23.902374,143.81,143.77,6.9554]
[1728131107622,6.30866571,143.8,143.77,6.9554]
[1728131107820,6.30866571,143.79,143.77,6.9554]
[1728131108032,23.902374,143.81,143.77,6.9554]
[1728131108318,6.30763155,143.8,143.77,6.9554]
[1728131108519,6.30763155,143.79,143.77,6.9554]
[1728131108821,25.07679469,143.81,143.77,6.9554]
[1728131109029,6.30737677,143.8,143.77,6.9554]
[1728131109322,6.30737677,143.79,143.77,6.9554]
[1728131109510,7.07859,143.82,143.77,6.9554]
[1728131109710,6.30605031,143.81,143.77,6.9554]
[1728131109915,6.30605031,143.8,143.77,6.9554]
[1728131110221,6.30605031,143.79,143.77,6.9554]
[1728131110525,7.07859,143.82,143.77,6.9554]
[1728131110825,6.30553953,143.81,143.77,6.9554]
[1728131111039,6.30553953,143.8,143.77,6.9554]
[1728131111210,6.30530537,143.79,143.77,6.9554]
[1728131111527,7.07859,143.82,143.77,6.9554]
[1728131111730,6.30474636,143.81,143.78,6.955]
[1728131111903,6.9531,143.82,143.78,6.955]
[1728131113310,30.980564,143.83,143.78,6.955]
[1728131114312,23.902374,143.83,143.8,6.9539]
[1728131118325,23.902374,143.83,143.79,6.9544]
[1728131129847,0.12549,143.83,143.78,50.0]
[1728131130024,0.12549,143.83,143.8,6.954]
[1728131130434,39.9185,143.88,143.8,6.954]
[1728131130733,24.027864,143.84,143.8,6.954]
[1728131133251,30.980064,143.84,143.8,6.954]
[1728131135256,30.980064,143.84,143.81,6.6642755]
[1728131142427,30.980064,143.84,143.81,206.6642755]
[1728131144851,39.9185,143.88,143.81,206.6642755]
[1728131145054,6.9517,143.85,143.81,213.6176755]
[1728131147659,7.07669,143.86,143.82,8.34349606]
[1728131150955,7.07669,143.86,143.82,6.953]
[1728131152342,6.9512,143.86,143.82,6.953]
[1728131152944,6.9508,143.87,143.83,8.34291646]
[1728131154561,7.07579,143.88,143.83,8.34291646]
[1728131154772,6.9503,143.88,143.84,6.952]
[1728131155065,6.9503,143.88,143.84,56.952]
[1728131158066,6.9515,143.86,143.81,296.7211755]
[1728131158271,1.17442069,143.85,143.81,223.0107755]
[1728131158447,6.9527,143.83,143.81,223.0107755]
[1728131158953,6.9522,143.84,143.81,223.0107755]
[1728131160470,23.902374,143.85,143.81,223.0107755]
[1728131160656,6.9522,143.84,143.81,223.0107755]
[1728131162959,6.9512,143.86,143.81,279.9639755]
[1728131163169,6.9512,143.86,143.82,8.34351442]
[1728131163681,6.9507,143.88,143.83,64.33077684]
[1728131163865,6.9507,143.88,143.84,6.9521]
[1728131164051,6.9507,143.88,143.84,8.34230066]
[1728131164269,6.9507,143.88,143.84,21.28271965]
[1728131165152,6.9507,143.88,143.84,6.9521]
[1728131170561,1.17442069,143.91,143.84,6.9521]
[1728131170777,6.9498,143.89,143.84,6.9521]
[1728131171079,8.12422069,143.89,143.85,24.3305]
[1728131171866,6.30117489,143.88,143.85,24.3305]
[1728131172063,6.30117489,143.87,143.85,24.3305]
[1728131172259,6.30117489,143.86,143.83,50.0]
[1728131172560,6.30117489,143.85,143.83,6.9525]
[1728131172760,6.30117489,143.84,143.83,6.9525]
[1728131173360,6.9507,143.87,143.83,6.9525]
[1728131173563,6.30011627,143.86,143.83,6.9525]
[1728131173768,6.30011627,143.85,143.83,6.9525]
[1728131173970,6.30011627,143.84,143.83,6.9525]
[1728131176577,6.29992739,143.84,143.83,6.9525]
[1728131177459,6.29992739,143.84,143.83,56.9525]
[1728131179890,6.30085454,143.84,143.83,56.9526]
[1728131183393,6.30048875,143.84,143.83,56.9526]
[1728131185097,6.30048875,143.84,143.83,6.9526]
[1728131186493,7.07599,143.88,143.83,6.9526]
[1728131186675,6.30232295,143.84,143.83,6.9526]
[1728131186991,6.30231949,143.84,143.83,6.9526]
[1728131193495,7.07599,143.88,143.83,6.9526]
[1728131193795,6.30496134,143.87,143.83,6.9526]
[1728131193997,6.30496134,143.86,143.83,6.9526]
[1728131194301,6.30496134,143.85,143.83,6.9526]
[1728131194602,6.9498,143.89,143.85,6.9515]
[1728131194790,6.30510431,143.88,143.85,6.9515]
[1728131194989,6.9498,143.89,143.85,6.9515]
[1728131194990,6.30510431,143.87,143.85,6.9515]
[1728131195184,6.30510431,143.86,143.85,6.9515]
[1728131195689,6.30510431,143.86,143.84,56.9517]
[1728131195992,6.30510431,143.85,143.84,56.9517]
[1728131196908,6.30560986,143.85,143.84,56.9517]
[1728131203218,6.9498,143.89,143.84,56.9517]
[1728131203509,6.30619114,143.88,143.84,56.9517]
[1728131203720,6.30619114,143.87,143.84,56.9517]
[1728131203914,6.30619114,143.86,143.84,56.9517]
[1728131204217,6.30619114,143.85,143.84,56.9517]
[1728131206411,8.12422069,143.89,143.84,56.9517]
[1728131206592,6.30744429,143.85,143.84,56.9517]
[1728131208111,0.8570311,143.92,143.89,50.0]
[1728131208298,6.30990662,143.91,143.89,56.9495]
[1728131208491,6.30990662,143.9,143.89,56.9495]
[1728131208991,6.30990662,143.9,143.87,50.0]
[1728131209195,6.30990662,143.89,143.87,50.0]
[1728131209507,6.30990662,143.88,143.86,6.9511]
[1728131209815,6.30990662,143.87,143.86,56.9511]
[1728131212605,6.30990662,143.87,143.86,58.34102066]
[1728131212798,0.8570311,143.92,143.88,56.9497]
[1728131213005,6.30469175,143.91,143.88,56.9497]
[1728131213213,6.30469175,143.9,143.88,56.9497]
[1728131213392,6.30469175,143.89,143.88,56.9497]
[1728131213699,6.30469175,143.89,143.88,6.9497]
[1728131216132,6.30469175,143.89,143.88,8.33958361]
[1728131216326,6.30469175,143.89,143.88,6.9497]
[1728131221229,4.80469175,143.89,143.88,6.9497]
[1728131222105,4.80469175,143.89,143.87,24.3263]
[1728131222413,23.902374,143.91,143.87,24.3263]
[1728131225811,23.902374,143.91,143.88,1.38989047]
[1728131225997,0.8570311,143.92,143.89,17.3735]
[1728131226201,0.8570311,143.92,143.91,6.9487]
[1728131228902,0.8570311,143.92,143.9,8.33870645]
[1728131229102,0.8570311,143.92,143.9,6.9491]
[1728131231536,0.8570311,143.92,143.91,8.33828456]
[1728131232024,0.8570311,143.92,143.91,6.9487]
[1728131233217,7.13018196,143.92,143.91,6.9487]
[1728131234506,0.8570311,143.92,143.91,6.9487]
[1728131234836,7.12911909,143.92,143.91,6.9487]
[1728131236809,7.12911909,143.92,143.91,56.9487]
[1728131237715,7.12911909,143.92,143.91,6.9487]
[1728131239926,7.12911909,143.92,143.91,56.9487]
[1728131241211,7.12898305,143.92,143.91,56.9487]
[1728131243828,7.12898305,143.92,143.89,80.31391899]
[1728131244137,6.27195195,143.91,143.89,74.3231]
[1728131244342,0.8570311,143.92,143.89,74.3231]
[1728131244515,6.27281774,143.91,143.89,74.3231]
[1728131244717,0.8570311,143.92,143.89,74.3231]
[1728131245029,6.27282165,143.91,143.89,74.3231]
[1728131245212,0.8570311,143.92,143.89,74.3231]
[1728131245407,6.27324278,143.91,143.89,74.3231]
[1728131245611,0.8570311,143.92,143.89,74.3231]
[1728131245832,6.27324331,143.91,143.89,74.3231]
[1728131246035,0.8570311,143.92,143.89,74.3231]
[1728131246244,6.27375664,143.91,143.89,74.3231]
[1728131246443,0.8570311,143.92,143.89,74.3231]
[1728131246634,6.27375664,143.91,143.89,74.3231]
[1728131246933,0.8570311,143.92,143.89,74.3231]
[1728131247150,6.27376108,143.91,143.89,74.3231]
[1728131247313,0.8570311,143.92,143.89,74.3231]
[1728131247516,6.27446761,143.91,143.89,74.3231]
[1728131247714,0.8570311,143.92,143.89,74.3231]
[1728131247918,6.27446723,143.91,143.89,74.3231]
[1728131248140,6.27446723,143.9,143.89,74.3231]
[1728131250625,6.27446723,143.9,143.89,24.3231]
[1728131252849,6.27446723,143.9,143.89,74.3231]
[1728131253943,6.27446723,143.9,143.89,24.3231]
[1728131254148,6.28290061,143.9,143.89,24.3231]
[1728131257247,6.28290061,143.9,143.89,17.3735]
[1728131257428,6.28396687,143.9,143.89,17.3735]
[1728131258447,6.28396687,143.9,143.88,50.0]
[1728131258620,6.28396687,143.89,143.88,50.0]
[1728131259227,6.28396687,143.89,143.87,56.9503]
[1728131259454,6.28396687,143.88,143.87,56.9503]
[1728131260537,7.8053311,143.92,143.87,56.9503]
[1728131260843,6.28439593,143.88,143.87,56.9503]
[1728131261219,6.28439593,143.88,143.87,6.9503]
[1728131261440,6.28439593,143.88,143.87,56.9503]
[1728131262945,6.28439593,143.88,143.87,58.34011901]